Cogmind - Beta 16 @@@ ROGUE MODE // 2025.12.29 @ 02:07:31 Player: tritri Result: Destroyed by G-47 Trooper with Particle Gun Performance ------------- Evolutions (0) 0 Regions Visited (4) 800 Robots Destroyed (39) 195 Value Destroyed (873) 873 Prototype IDs (25) 500 Alien Tech Used (0) 0 Bonus (286) 286 TOTAL SCORE: 2654 Bonus ------- Aligned with FarCom 300 Friendly Fire -14 Cogmind --------- Core Integrity 0/250 Matter 3/300 Energy 100/100 System Corruption 5% Temperature Cool (9) Movement Treading (240) Ox1 Location -9/Mines Parts ------- > --- POWER (1) -------- (None) > --- PROPULSION (2) --- Improved Treads > --- UTILITY (2) ------ Large Storage Unit > --- WEAPON (2) ------- Grenade Launcher Rocket Launcher > --- INVENTORY (15) --- Improved Treads Flight Unit Flight Unit Flight Unit Flight Unit Experimental Sensor Array Transport Network Coupler Hacking Suite System Shield Assault Rifle Light Assault Rifle Longsword +1 Peak State ------------ > --- POWER ------------ (None) > --- PROPULSION ------- Improved Treads Improved Treads > --- UTILITY ---------- Large Storage Unit > --- WEAPON ----------- Grenade Launcher Longsword +1 > --- INVENTORY -------- Improved Treads Flight Unit Flight Unit Flight Unit Flight Unit Experimental Sensor Array Transport Network Coupler Hacking Suite System Shield Assault Rifle Light Assault Rifle Grenade Launcher Rocket Launcher [Rating: 16] Favorites ----------- Power Ion Engine Engine Ion Engine Propulsion Improved Treads Treads Improved Treads Leg Aluminum Leg Utility Large Storage Unit Device Improved Heat Sink Storage Large Storage Unit Processor Signal Interpreter Weapon Grenade Launcher Ballistic Gun Light Assault Rifle Launcher Grenade Launcher Slashing Weapon Longsword +1 Build | -11 -10 -10 -10 -9 ------- Run | Yrd Mat Min Exi Min Slots Evolved . | . . . . . Power . | . . . . . Propulsion . | . . . . . Utility . | . . . . . Weapon . | . . . . . Parts Attached 21 | 5 14 . . 2 Power 2 | 1 1 . . . Engine 2 | 1 1 . . . Core . | . . . . . Reactor . | . . . . . Propulsion 6 | 2 4 . . . Treads 4 | . 4 . . . Leg 2 | 2 . . . . Wheel . | . . . . . Hover . | . . . . . Flight . | . . . . . Utility 6 | . 6 . . . Device 3 | . 3 . . . Storage 2 | . 2 . . . Processor 1 | . 1 . . . Hackware . | . . . . . Protection . | . . . . . Artifact . | . . . . . Weapon 7 | 2 3 . . 2 Energy Gun . | . . . . . Energy Cannon . | . . . . . Ballistic Gun 3 | 2 1 . . . Ballistic Cannon . | . . . . . Launcher 3 | . 2 . . 1 Special Weapon . | . . . . . Impact Weapon . | . . . . . Slashing Weapon 1 | . . . . 1 Piercing Weapon . | . . . . . Special Melee Weapon . | . . . . . Unidentified Prototypes . | . . . . . Parts Lost 9 | . 4 2 . 3 Power 2 | . 1 1 . . Propulsion 2 | . 1 . . 1 Utility 3 | . 2 1 . . Weapon 2 | . . . . 2 Highest Loss Streak 2 | . 2 2 . 2 To Critical Strikes . | . . . . . Average Backups 9 | . 4 12 14 12 Power . | . . . . . Propulsion 3 | . 1 5 5 5 Utility 2 | . . 3 4 4 Weapon 2 | . 1 3 4 3 Tool/Special . | . . . . . Unused Backups 10 | . 1 . 1 8 Power . | . . . . . Propulsion 6 | . 1 . 1 4 Utility 4 | . . . . 4 Weapon . | . . . . . Tool/Special . | . . . . . Average Slot Usage (%) 75 | . 88 97 50 54 Engine 7 | . 12 12 . . Treads 25 | . 25 28 28 19 Device 8 | . 14 12 . . Storage 10 | . 6 14 14 14 Ballistic Gun 11 | . 25 . . 1 Launcher 10 | . 2 28 8 16 Peak Build Rating 16 | 5 12 13 9 16 Average Rating 9 | 3 9 12 7 9 On Entrance 6 | . 5 12 9 8 Avg Prop Armor Cover (%) . | . . . . . Naked Turns 5 | . 5 . . . Heaviest Build 32 | 5 32 32 26 27 Greatest Support 46 | 20 46 46 46 46 Greatest Overweight (x) 1 | . 1 . . 1 Average Overweight (x) . | . . . . . Largest Inventory Capacity 15 | 5 15 15 15 15 Average Capacity 11 | 5 7 15 15 15 Most Carried 15 | 1 10 13 15 15 Average Carried 9 | . 4 12 14 12 Final Capacity 15 | 5 15 15 15 15 Final Carried 15 | 1 9 13 15 12 Class Distribution -------------------- 100% | Mutant Dominant Class ---------------- Mutant | -10/Materials Mutant | -10/Mines Mutant | -10/Exiles Mutant | -9/Mines Resources | -11 -10 -10 -10 -9 ----------- Run | Yrd Mat Min Exi Min Matter Collected 909 | 254 368 279 . 8 Remotely . | . . . . . Salvage Created 879 | 37 502 167 . 173 Parts 63 | 2 23 24 . 14 Haulers Intercepted 1 | . 1 . . . Recyclers Shooed . | . . . . . Parts Field Recycled . | . . . . . Retrieved Matter . | . . . . . Parts Self-Destructed . | . . . . . Prevented . | . . . . . Parts Restored . | . . . . . Kills | -11 -10 -10 -10 -9 ------- Run | Yrd Mat Min Exi Min Combat Hostiles Destroyed 31 | 1 11 11 . 8 Melee 1 | . . . . 1 Guns 12 | 1 11 . . . AOE 18 | . . 11 . 7 Classes Destroyed 8 | 1 3 2 . 2 Worker 3 | . . 1 . 2 Tunneler 1 | . . 1 . . Hauler 1 | . 1 . . . Recycler 1 | . . . . 1 Watcher 2 | . 2 . . . Swarmer 14 | . 2 6 . 6 Grunt 16 | 1 9 5 . 1 Duelist 1 | . . . . 1 Best Kill Streak 6 | 1 3 6 . 4 Combat Bots Only 6 | 1 3 6 . 3 Max Kills in Single Turn 3 | 1 1 3 . 3 Gunslinging . | . . . . . Exploded 3 | . . 3 . 3 Melee 1 | . . . . 1 Uniques/NPCs Destroyed . | . . . . . Combat | -11 -10 -10 -10 -9 -------- Run | Yrd Mat Min Exi Min Hostile Shots Fired 137 | 2 90 13 . 32 Missed 40 | . 26 5 . 9 Hits 97 | 2 64 8 . 23 Melee 4 | . . . . 4 Projectile 93 | 2 64 8 . 19 Critical Strikes 4 | . 3 . . 1 Damage Taken 1460 | 23 734 333 . 370 Core 254 | . 129 61 . 64 Absorbed by Shields . | . . . . . Core Remaining (%) 100 | 100 . . . . Volleys Fired 94 | 2 74 8 . 10 Largest 2 | 2 2 2 . 2 Hottest 60 | 40 60 60 . 50 Shots Fired 185 | 4 147 17 1 16 Gun 149 | 4 139 . . 6 Cannon . | . . . . . Launcher 36 | . 8 17 1 10 Special . | . . . . . Kinetic 149 | 4 139 . . 6 Thermal . | . . . . . Explosive 36 | . 8 17 1 10 Electromagnetic . | . . . . . Robot Hit Streak 17 | 4 17 6 . 2 Robot Miss Streak 5 | . 5 1 . 5 Penetration Max . | . . . . . Secondary Targets 2 | . 2 . . . Max Gunslinging Chain 1 | . 1 . . . Shots Hit Robots 96 | 4 76 8 . 8 Core Hits 69 | 2 35 19 . 13 Critical Kills 1 | . 1 . . . Critical Parts Destroyed . | . . . . . Critical Strikes 2 | . 1 . . 1 Destroy 1 | . 1 . . . Sever 1 | . . . . 1 Melee Attacks 4 | . . . . 4 Impact . | . . . . . Slashing 4 | . . . . 4 Piercing . | . . . . . Sneak Attacks . | . . . . . Combat Hostiles . | . . . . . Follow-up Attacks . | . . . . . Damage Inflicted 2084 | 34 765 592 . 693 Guns 729 | 34 669 . . 26 Cannons . | . . . . . Explosions 1210 | . 68 592 . 550 Melee 117 | . . . . 117 Ramming 28 | . 28 . . . Kinetic 729 | 34 669 . . 26 Thermal . | . . . . . Explosive 1210 | . 68 592 . 550 Electromagnetic . | . . . . . Impact . | . . . . . Slashing 117 | . . . . 117 Piercing . | . . . . . Highest Corruption 5 | . 1 5 5 5 Average Corruption 2 | . 1 1 5 5 Corruption Purged . | . . . . . Corruption Blocked . | . . . . . Effects 71 | . 13 10 25 23 Message Errors 18 | . 3 3 7 5 Matter Fused 18 | . 2 2 5 9 Heat Flow Errors 11 | . 2 . 4 5 Energy Discharges 8 | . 3 . 5 . Parts Fused 1 | . . . 1 . Data Loss (minor) 6 | . 2 . 1 3 Data Loss (major) 3 | . . 3 . . Misfires 3 | . 1 1 1 . Alerts 3 | . . 1 1 1 Overload Shots . | . . . . . Overflow Damage 35 | . . . . 35 Projectiles . | . . . . . Explosions 35 | . . . . 35 Melee . | . . . . . Knockbacks 1 | . 1 . . . Impact 1 | . 1 . . . Kinetic . | . . . . . Secondary . | . . . . . Self-Inflicted Damage 49 | . . 42 . 7 Shots 3 | . . 2 . 1 Rammed 8 | . 7 . . 1 Targets Rammed 8 | . 7 . . 1 Kicked . | . . . . . Crushed . | . . . . . Highest Temperature 254 | 6 254 . 253 223 Average Temperature 77 | 6 40 . 113 90 Received Heat Transfer 474 | 12 354 18 . 90 Siege Activations . | . . . . . Martial Activations . | . . . . . Shielding Activations . | . . . . . Robots Disrupted . | . . . . . Combat Hostiles . | . . . . . Robots Corrupted . | . . . . . Combat Hostiles . | . . . . . Parts Fried . | . . . . . Impact Corruptions . | . . . . . Robots Melted . | . . . . . Combat Hostiles . | . . . . . Parts Melted . | . . . . . Heat Transferred . | . . . . . Parts Sabotaged . | . . . . . Parts Stolen . | . . . . . Parts Stripped . | . . . . . Power Chain Reactions . | . . . . . Alert | -11 -10 -10 -10 -9 ------- Run | Yrd Mat Min Exi Min Maximum Alert Level 1 | . . 1 . . Low Security (%) 99 | 100 100 98 . 100 Level 1 . | . . 1 . . Level 2 . | . . . . . Level 3 . | . . . . . Level 4 . | . . . . . Level 5 . | . . . . . High Security . | . . . . . Max Security . | . . . . . Peak Influence 208 | 20 99 208 . 157 Initial 36 | . 6 36 . . Average 45 | 3 17 99 . 62 Influence Increases 1018 | 20 348 347 . 303 Destroy 0b10 Robot/C 620 | 20 220 220 . 160 Destroy 0b10 Robot/NC 40 | . 15 10 . 15 Destroy Leader 136 | . 66 40 . 30 Allied During Kill 3 | . . 3 . . Successful Hack 12 | . 12 . . . Disable Machine 60 | . . . . 60 Destroy Structure 147 | . 35 74 . 38 Influence Decreases 1007 | 10 265 420 20 292 Entered New Map 81 | . 4 57 20 . Time Decay 866 | 10 241 343 . 272 Lost Part 60 | . 20 20 . 20 Squads Dispatched 3 | . 2 1 . . Investigation 1 | . . 1 . . Extermination . | . . . . . Reinforcement 2 | . 2 . . . Assault . | . . . . . Garrison . | . . . . . Intercept . | . . . . . Searches Triggered . | . . . . . Construction Impeded . | . . . . . Haulers Reinforced . | . . . . . Active Scanning Responses . | . . . . . Cargo Convoy Interrupts . | . . . . . Stealth | -11 -10 -10 -10 -9 --------- Run | Yrd Mat Min Exi Min Distress Signals 1 | . 1 . . . Communications Jammed . | . . . . . Distress Signals . | . . . . . Times Spotted 49 | 1 28 10 . 10 Peak Tracking Total 4 | . 4 3 . 3 Tactical Retreats . | . . . . . Traps | -11 -10 -10 -10 -9 ------- Run | Yrd Mat Min Exi Min Traps Triggered 5 | . 5 . . . Indirectly . | . . . . . Trap Hack Attempts . | . . . . . Triggered . | . . . . . Disarmed . | . . . . . Reprogrammed . | . . . . . Reused . | . . . . . Traps Extracted . | . . . . . Installed . | . . . . . Triggered . | . . . . . Machines | -11 -10 -10 -10 -9 ---------- Run | Yrd Mat Min Exi Min Machines Disabled 5 | . . . 1 4 Max in Single Turn 3 | . . . 1 3 Machines Repaired . | . . . . . Machines Dismantled . | . . . . . Machines Sabotaged . | . . . . . Overloaded Fab Kills . | . . . . . Hacking | -11 -10 -10 -10 -9 --------- Run | Yrd Mat Min Exi Min Machines Accessed 11 | . 4 1 5 1 Terminals 4 | . 4 . . . Fabricators . | . . . . . Repair Stations . | . . . . . Recycling Units . | . . . . . Scanalyzers . | . . . . . Garrison Access . | . . . . . Total Hacks 57 | . 5 1 50 1 Successful 57 | . 5 1 50 1 Failed . | . . . . . Catastrophic . | . . . . . Database Lockouts . | . . . . . Manual 2 | . 1 . 1 . Terminals 5 | . 5 . . . Fabricators . | . . . . . Repair Stations . | . . . . . Recycling Units . | . . . . . Scanalyzers . | . . . . . Garrison Access . | . . . . . Terminal Hacks 57 | . 5 1 50 1 Record 52 | . 3 . 49 . Prototype ID Bank 1 | . 1 . . . Open Door 2 | . . 1 . 1 Alert Level 1 | . 1 . . . Proto ID Catalog 1 | . . . 1 . Fabricator Hacks . | . . . . . Repair Station Hacks . | . . . . . Recycling Unit Hacks . | . . . . . Scanalyzer . | . . . . . Garrison Access Hacks . | . . . . . Unauthorized Hacks . | . . . . . Terminals . | . . . . . Fabricators . | . . . . . Repair Stations . | . . . . . Recycling Units . | . . . . . Scanalyzers . | . . . . . Garrison Access . | . . . . . Data Cores Recovered . | . . . . . Used . | . . . . . Hacking Detections 2 | . 2 . . . Full Trace Events . | . . . . . Feedback Events . | . . . . . Feedback Blocked . | . . . . . Robot Schematics Acquired . | . . . . . Robots Built . | . . . . . Authchips . | . . . . . Time . | . . . . . Total Robot Build Rating . | . . . . . Part Schematics Acquired . | . . . . . Parts Built . | . . . . . Authchips . | . . . . . Time . | . . . . . Total Part Build Rating . | . . . . . Part Studies Acquired . | . . . . . Parts Repaired . | . . . . . Time . | . . . . . Parts Recycled . | . . . . . Recycled Matter . | . . . . . Retrieved Matter . | . . . . . Retrieved Components . | . . . . . Parts Scanalyzed . | . . . . . Part Schematics Acquired . | . . . . . Parts Damaged . | . . . . . Bothacking | -11 -10 -10 -10 -9 ------------ Run | Yrd Mat Min Exi Min Used RIF Installer . | . . . . . Robots Hacked . | . . . . . Non-combat . | . . . . . Combat . | . . . . . Robot Hacks Applied . | . . . . . Relay Couplers Released . | . . . . . Fabnet Peak Effective % . | . . . . . Robots Rewired . | . . . . . Allies Hacked . | . . . . . Hacks Repelled . | . . . . . Allies | -11 -10 -10 -10 -9 -------- Run | Yrd Mat Min Exi Min Total Allies 1 | . . 1 . . Largest Group 1 | . . 1 . . Highest-Rated Group 31 | . . 31 . . Highest-Rated Ally 31 | . . 31 . . Total Orders . | . . . . . Ally Attacks 4 | . . 4 . . Total Damage 44 | . . 44 . . Kills . | . . . . . Allies Corrupted . | . . . . . Allies Melted . | . . . . . Intel | -11 -10 -10 -10 -9 ------- Run | Yrd Mat Min Exi Min Active Infowar (turns) 615 | . 615 . . . Terrain 280 | . 280 . . . Seismic 615 | . 615 . . . Robot Analysis Total . | . . . . . Derelict Logs Recovered 2 | . . 2 . . Drone Launches . | . . . . . Drone Recoveries . | . . . . . Exploration | -11 -10 -10 -10 -9 ------------- Run | Yrd Mat Min Exi Min Turns Passed 4847 | 93 2045 801 973 935 Spaces Moved 2702 | 77 1098 484 606 437 Core 27 | 17 10 . . . Treads 2598 | . 1071 484 606 437 Legs 77 | 60 17 . . . Wheels . | . . . . . Hover . | . . . . . Flight . | . . . . . Fastest Speed 50 | 50 50 160 160 160 Average Speed 164 | 104 158 160 160 203 Slowest Speed 240 | 120 160 160 160 240 Overloaded Moves . | . . . . . Propulsion Burnouts . | . . . . . Robots Hopped . | . . . . . Potential Cave-ins 1 | . . 1 . . Cave-ins Triggered 1 | . . 1 . . Exploration Rate (%) 69 | 5 95 84 86 79 Regions Visited 4 Branch Regions 3 Pre-discovered Areas 1 | . . . 1 . Known Exits Taken 1 | . . . 1 . Unknown Exits Taken 3 | 1 1 1 . . Scrap Searched . | . . . . . Spaces Dug . | . . . . . Terrain Destroyed 174 | . 34 92 3 45 Melee . | . . . . . Projectile . | . . . . . AOE 174 | . 34 92 3 45 Terrain Rammed . | . . . . . Walls Destroyed . | . . . . . Machines Disabled . | . . . . . Actions | -11 -10 -10 -10 -9 --------- Run | Yrd Mat Min Exi Min Total 2920 | 84 1271 495 611 459 Wait 42 | . 42 . . . Move 2697 | 76 1097 482 605 437 Hop . | . . . . . Pick Up 18 | 1 11 4 1 1 Fast Attach 21 | 5 16 . . . Attach 12 | . 8 . . 4 Detach 10 | . 8 . 2 . Swap 5 | . 3 . . 2 Drop 6 | . 5 . 1 . Fire 94 | 2 74 8 . 10 Melee 4 | . . . . 4 Ram . | . . . . . Kick . | . . . . . Crush 8 | . 7 . . 1 Escape Stasis 1 | . . 1 . . Rewire 2 | . . . 2 . Trap . | . . . . . Miscellaneous . | . . . . . Route ------- -11/Scrapyard -10/Materials (discovered 4 exits: [*Mat x3] / *Min) -10/Mines (discovered 4 exits: [*Mat x2] / *Exi / *Sub) -10/Exiles (discovered 2 exits: *Min x2) -9/Mines (discovered 1 exit: [*Mat]) History --------- Turn | Location | Event 2 | -11/Scrapyard | Met Revision 17 66 | -11/Scrapyard | Discovered new exit (range 8) 94 | -11/Scrapyard | Entered Materials 313 | -10/Materials | Build established: Mutant 895 | -10/Materials | Discovered new exit (range 10) 1256 | -10/Materials | Discovered new exit (range 15) 1825 | -10/Materials | Discovered new exit (range 16) 2008 | -10/Materials | Core integrity fell below 50% 2100 | -10/Materials | Discovered new exit (range 16) 2139 | -10/Materials | Entered Mines 2266 | -10/Mines | Discovered new exit (range 12) 2269 | -10/Mines | Met a Derelict shopkeep closing up shop 2277 | -10/Mines | Met a Derelict bent on vengeance 2440 | -10/Mines | Assembled infested the area 2450 | -10/Mines | Found a damaged Exp. Sensor Array with a note attached 2453 | -10/Mines | Found Prototype Device 2533 | -10/Mines | Discovered new exit (range 16) 2558 | -10/Mines | Escorted by a lone wolf Derelict 2638 | -10/Mines | Discovered new exit (range 5) 2691 | -10/Mines | Identified exit to Subcaves 2867 | -10/Mines | Crushed by falling debris 2940 | -10/Mines | Entered Exiles 2940 | -10/Exiles | Accompanied by 1 ally 2941 | -10/Exiles | Identified exit to Mines 2984 | -10/Exiles | Met 8R-AWN 3006 | -10/Exiles | Met EX-HEX 3118 | -10/Exiles | Met EX-DEC 3170 | -10/Exiles | Learned location of Zion (-7) 3412 | -10/Exiles | Visited The Gauntlet 3599 | -10/Exiles | Met EX-BIN 3636 | -10/Exiles | Aligned with FarCom system 3638 | -10/Exiles | Given EX-Vault access code 3727 | -10/Exiles | Opened EX-Vault 3747 | -10/Exiles | Found Longsword +1 3780 | -10/Exiles | Warned to stay clear of 0b10 Research branches 3913 | -10/Exiles | Left Exiles lab with Longsword +1 3913 | -10/Exiles | Entered Mines 3934 | -9/Mines | Found the Drone Emporium 4192 | -9/Mines | Received a Rocket Launcher from a helpful Derelict 4262 | -9/Mines | Core integrity fell below 20% 4837 | -9/Mines | Discovered new exit (range 6) 4848 | -9/Mines | Destroyed by G-47 Trooper with Particle Gun Last Messages --------------- 04461_ K-01 Serf collects debris. 04472_ Acquired 1 matter. 04473_ The unstable cave ceiling collapses. 04473_ K-01 Serf collects debris. 04478_ The unstable cave ceiling collapses. 04496_ System corrupted: Matter fused (-6). 04513_ System corrupted: Matter fused (-9). 04532_ System corrupted: Matter fused (-3). 04568_ %5>Y0T F06OLQPGELTUZ 04592_ System corrupted: Component data lost. 04607_ HU%WC0QHI4JAWEB4L0OSFHDU N6VZI&%QYE 04636_ IOM#21QLSV&CB1D&HPWAQ>8QLHHD9=HJZVRL 04651_ System corrupted: Component data lost. 04791_ System corrupted: IFF burst signal emitted. [Achievement: Oops] 04825_ Slammed into T-07 Excavator. 04837_ EXIT=FOUND 04841_ IN#ZKS>N>TLKJ>:SI,XJER&IBVO6 Map ----- +----------------------------------------------------+ | | | | | | | | | | | | | | | | | | | | | | | | | | | | | | | | | ?????????????????????????????????????????????????? | | ?????????????????????????????????????????????????? | | ??????????????????######?????????????????????????? | | ??????????????##### ##????????????????????????? | | ?????????????## #???????#????????????????? | | ????????????## ##???? ##???????????????? | | ????????????# """ ##?? #???????????????? | | ???????????## """ ## #####???????????? | | ???????????# """ ????????????? | | ?????????????????# g @ < #???????????????????? | | ?????????????????#### #### ##???????????????????? | | ????????????????????# #???###????????????????????? | | ????????????????????# #??????????????????????????? | | ????????????????????# #??????????????????????????? | | ???????????????###### #####??????????????????##### | | ???????????????# #??????????????????# | | ???????????????# ######## #??????????????????# """ | | ???????????????# #???????????????????????????# """ | | ??????????###### #???????????????????????????# """ | | ?????????## #???????????????????????????# | | ?????????# ###???????????????????????????# """ | | ?????????# #?????????????????????????????# "" | | ?????????## g######???????????????????###### "" | | ??????????# #???????????????????# | | ??????????## ##### #???????????????????# ####% | | ???????????####???# #???????????????????# #?## % | | ??????????????????# #???????????????????# #### | | ???????????????#### #??????????########## ## # | | ??????????????## # ###????????# ## ## | | ??????????##### ##???????# ########## | | ??????????# #???????# #???????# ! | | ###???????# ### #??????# #???????# ==% | | #??????# #?## ####???# #???????# =## # | | #??????# #??######### ##??# #???????# ## # | +----------------------------------------------------+ Best States ------------- Heat Dissipation 39 Energy Generation 10 Energy Capacity 250 Matter Stores 300 Matter Capacity 300 Sight Range 16 Terrain Scan Range 14 Terrain Scan Density 10 Evasion (%) 55 Recoil Reduction 2 Item Schematics ----------------- None Robot Schematics ------------------ None Fabricated ------------ Nothing Repaired ---------- Nothing Studied --------- None Alien Tech Used ----------------- None Achievements -------------- DATA ERROR: Steam Global Achievement% Librarian Loot Pinata Maybe Next Time I'll Detach My Launcher Oops Sixth Sense Tourist Unlikely Earthworm Challenges ------------ None Game ------ Seed TimingBoreFlamer Manual? 0 Play Time 00:44:37 Cumulative 1.0 hours Start 2025.12.29 @ 01:11:15 End 2025.12.29 @ 02:07:31 Sessions 1 Manual Loads 0 Difficulty Rogue Special Mode None Game No. 2 Rogue 2 Adventurer 0 Explorer 0 Win Type - Total 0 Types 0/0/0/0/0/0/0/0/0/0 Lore% 5 Gallery% 1 Achievement% 3 Wizard Run 0 Options --------- Layout 1 ASCII 0 Keyboard 1 Movement Vi Keybinds 0 Fullscreen 1 Font 24/Smallcaps Map View 50x35 Zoom Use 0% Tactical HUD 1 Map Filters NONE Filters NONE Steam 1 RUN: 4b5095c6-430c-474d-ac34-560ce6d84d69